[Event "Early-Titled-Tuesday-Blitz-June-18-2024"]
[Site "Chess.com"]
[Date "2024.06.18"]
[Round "3"]
[White "KuzubovYuriy"]
[Black "simplerXiao"]
[Result "1-0"]
[WhiteElo "2866"]
[BlackElo "2531"]
[TimeControl "180+1"]
[EndTime "8:31:43 PDT"]
[Termination "KuzubovYuriy won by resignation"]

1. d4 {[%clk 0:03:00.8]} 1... d5 {[%clk 0:02:58.9]} 2. c4 {[%clk 0:03:00.7]}
2... e6 {[%clk 0:02:59.6]} 3. Nc3 {[%clk 0:03:00.2]} 3... Nf6 {[%clk 0:03:00.3]}
4. cxd5 {[%clk 0:02:59.9]} 4... exd5 {[%clk 0:03:00.3]} 5. Bg5 {[%clk
0:03:00.1]} 5... Bb4 {[%clk 0:03:01]} 6. e3 {[%clk 0:02:56.2]} 6... c5 {[%clk
0:03:01.2]} 7. Bd3 {[%clk 0:02:53.3]} 7... Nbd7 {[%clk 0:02:59.2]} 8. Ne2 {[%clk
0:02:52.4]} 8... c4 {[%clk 0:02:58.6]} 9. Bc2 {[%clk 0:02:51.7]} 9... O-O {[%clk
0:02:57.6]} 10. O-O {[%clk 0:02:51.1]} 10... Be7 {[%clk 0:02:57.7]} 11. Rc1
{[%clk 0:02:43.6]} 11... b5 {[%clk 0:02:55]} 12. Nxb5 {[%clk 0:02:38.1]} 12...
Rb8 {[%clk 0:02:50.6]} 13. Nxa7 {[%clk 0:02:37.1]} 13... Rxb2 {[%clk 0:02:50.5]}
14. Nc6 {[%clk 0:02:35.2]} 14... Qe8 {[%clk 0:02:48.6]} 15. Nxe7+ {[%clk
0:02:29.4]} 15... Qxe7 {[%clk 0:02:48.5]} 16. Nc3 {[%clk 0:02:29.9]} 16... Qd6
{[%clk 0:02:43.9]} 17. Rb1 {[%clk 0:02:27.2]} 17... Qa3 {[%clk 0:02:38.5]} 18.
Rxb2 {[%clk 0:02:24.1]} 18... Qxb2 {[%clk 0:02:38]} 19. Qc1 {[%clk 0:02:24.4]}
19... Qb4 {[%clk 0:02:32]} 20. a3 {[%clk 0:02:22.8]} 20... Qa5 {[%clk 0:02:31]}
21. Qb2 {[%clk 0:02:22.3]} 21... h6 {[%clk 0:02:29.9]} 22. Bh4 {[%clk 0:02:20]}
22... Nh5 {[%clk 0:02:05]} 23. Qb4 {[%clk 0:02:17.2]} 23... Qxb4 {[%clk
0:01:58]} 24. axb4 {[%clk 0:02:18.1]} 24... g5 {[%clk 0:01:53.2]} 25. Bg3 {[%clk
0:02:18]} 25... Nxg3 {[%clk 0:01:53.5]} 26. hxg3 {[%clk 0:02:14.7]} 26... Bb7
{[%clk 0:01:50.3]} 27. Ra1 {[%clk 0:02:12.7]} 27... Ra8 {[%clk 0:01:48.9]} 28.
Rxa8+ {[%clk 0:02:11.5]} 28... Bxa8 {[%clk 0:01:49.8]} 29. f3 {[%clk 0:02:11]}
29... Kf8 {[%clk 0:01:48.3]} 30. e4 {[%clk 0:02:10.5]} 30... Nb6 {[%clk
0:01:48.5]} 31. Kf2 {[%clk 0:02:06.5]} 31... Ke7 {[%clk 0:01:48.4]} 32. exd5
{[%clk 0:02:02.2]} 32... Bxd5 {[%clk 0:01:47.8]} 33. Be4 {[%clk 0:01:58.3]}
33... Be6 {[%clk 0:01:43.9]} 34. g4 {[%clk 0:01:55.1]} 34... Kd6 {[%clk
0:01:42.5]} 35. Ke3 {[%clk 0:01:54.8]} 35... Bd7 {[%clk 0:01:41.2]} 36. g3
{[%clk 0:01:49.6]} 36... Bc8 {[%clk 0:01:38.3]} 37. d5 {[%clk 0:01:46]} 37...
Ke5 {[%clk 0:01:24.7]} 38. f4+ {[%clk 0:01:45.6]} 38... gxf4+ {[%clk 0:01:24.7]}
39. gxf4+ {[%clk 0:01:46.5]} 39... Kd6 {[%clk 0:01:25.3]} 40. Bf3 {[%clk
0:01:46.8]} 40... f5 {[%clk 0:01:23.2]} 41. g5 {[%clk 0:01:43.6]} 41... hxg5
{[%clk 0:01:22.8]} 42. Nb5+ {[%clk 0:01:42.9]} 42... Ke7 {[%clk 0:01:21.7]} 43.
fxg5 {[%clk 0:01:43.8]} 43... Bd7 {[%clk 0:01:21.5]} 44. Nc3 {[%clk 0:01:37]}
44... Kf7 {[%clk 0:01:18.6]} 45. Kf4 {[%clk 0:01:34.8]} 45... Kg6 {[%clk
0:01:16.9]} 46. Be2 {[%clk 0:01:25.9]} 46... Be8 {[%clk 0:01:14.4]} 47. Bd1
{[%clk 0:01:12.2]} 47... Bd7 {[%clk 0:01:06.5]} 48. Bc2 {[%clk 0:01:07.1]} 48...
Nc8 {[%clk 0:01:06.4]} 49. Nd1 {[%clk 0:00:57.7]} 49... Ne7 {[%clk 0:01:01.3]}
50. Ne3 {[%clk 0:00:55.4]} 50... Kh5 {[%clk 0:00:50.5]} 51. Bd1+ {[%clk
0:00:49]} 51... Kg6 {[%clk 0:00:50.6]} 52. Bf3 {[%clk 0:00:46.4]} 52... c3
{[%clk 0:00:48.3]} 53. Bd1 {[%clk 0:00:39.7]} 53... Nc8 {[%clk 0:00:43.9]} 54.
Bc2 {[%clk 0:00:35.4]} 54... Nd6 {[%clk 0:00:44.1]} 55. Nd1 {[%clk 0:00:35.1]}
55... Nf7 {[%clk 0:00:34.4]} 56. Nxc3 {[%clk 0:00:31.7]} 56... Nxg5 {[%clk
0:00:34.5]} 57. b5 {[%clk 0:00:26.7]} 57... Kf6 {[%clk 0:00:32.5]} 58. b6 {[%clk
0:00:24.9]} 58... Nh3+ {[%clk 0:00:31.1]} 59. Ke3 {[%clk 0:00:20.7]} 59... f4+
{[%clk 0:00:25.4]} 60. Kd4 {[%clk 0:00:20.3]} 60... Bc8 {[%clk 0:00:25.6]} 61.
Ba4 {[%clk 0:00:19.3]} 61... f3 {[%clk 0:00:24.6]} 62. Bc6 {[%clk 0:00:18.1]}
62... f2 {[%clk 0:00:23.6]} 63. Ne4+ {[%clk 0:00:16.7]} 63... Ke7 {[%clk
0:00:21.1]} 64. Nd2 {[%clk 0:00:16.5]} 64... Nf4 {[%clk 0:00:18.3]} 65. Ke3
{[%clk 0:00:14.9]} 65... Ng6 {[%clk 0:00:15.1]} 66. b7 {[%clk 0:00:13.4]} 66...
Bxb7 {[%clk 0:00:14.9]} 67. Bxb7 {[%clk 0:00:13.6]} 67... Kd6 {[%clk 0:00:15.5]}
68. Ne4+ {[%clk 0:00:13.3]} 68... Ke5 {[%clk 0:00:13.6]} 69. Nxf2 {[%clk
0:00:12.9]} 69... Ne7 {[%clk 0:00:12.9]} 70. Nd3+ {[%clk 0:00:11.9]} 70... Kd6
{[%clk 0:00:13]} 71. Nf4 {[%clk 0:00:11.6]} 71... Ke5 {[%clk 0:00:12.9]} 72. Ba8
{[%clk 0:00:11.2]} 72... Nf5+ {[%clk 0:00:13.3]} 73. Kf3 {[%clk 0:00:11.3]}
73... Nd6 {[%clk 0:00:13.1]} 74. Nd3+ {[%clk 0:00:09.9]} 74... Kd4 {[%clk
0:00:13.2]} 75. Nf4 {[%clk 0:00:09.6]} 75... Ke5 {[%clk 0:00:13]} 76. Ne6 {[%clk
0:00:09.5]} 76... Nf5 {[%clk 0:00:11.4]} 77. Nc5 {[%clk 0:00:08]} 77... Ne7
{[%clk 0:00:11.3]} 78. Nd7+ {[%clk 0:00:07.5]} 78... Kd6 {[%clk 0:00:11.4]} 79.
Nb6 {[%clk 0:00:06.3]} 79... Kc5 {[%clk 0:00:11.7]} 80. Na4+ {[%clk 0:00:06]}
80... Kd6 {[%clk 0:00:10.8]} 81. Nc3 {[%clk 0:00:06.5]} 81... Ke5 {[%clk
0:00:11.3]} 82. Ke3 {[%clk 0:00:06.4]} 82... Nf5+ {[%clk 0:00:11.8]} 83. Kd3
{[%clk 0:00:06.4]} 83... Nd6 {[%clk 0:00:12.4]} 84. Bc6 {[%clk 0:00:05.3]} 84...
Nf7 {[%clk 0:00:11.8]} 85. Kc4 {[%clk 0:00:05]} 85... Nd6+ {[%clk 0:00:11.6]}
86. Kc5 {[%clk 0:00:04.9]} 86... Ne8 {[%clk 0:00:11.9]} 87. Bxe8 {[%clk
0:00:04.5]} 87... Kf4 {[%clk 0:00:09.9]} 88. Bc6 {[%clk 0:00:05.4]} 88... Ke5
{[%clk 0:00:10.2]} 89. Nb5 {[%clk 0:00:06.3]} 1-0

[Event "Early-Titled-Tuesday-Blitz-June-18-2024"]
[Site "Chess.com"]
[Date "2024.06.18"]
[Round "3"]
[White "Aradhya2000"]
[Black "Sondremelaa"]
[Result "0-1"]
[WhiteElo "2820"]
[BlackElo "2616"]
[TimeControl "180+1"]
[EndTime "8:31:47 PDT"]
[Termination "Sondremelaa won by checkmate"]

1. d4 {[%clk 0:03:00.9]} 1... d5 {[%clk 0:02:56.4]} 2. Nf3 {[%clk 0:03:01.2]}
2... Nf6 {[%clk 0:02:56]} 3. Bf4 {[%clk 0:03:00.7]} 3... c5 {[%clk 0:02:55.5]}
4. e3 {[%clk 0:03:00.8]} 4... Nc6 {[%clk 0:02:54.8]} 5. Nbd2 {[%clk 0:03:00.7]}
5... cxd4 {[%clk 0:02:53.9]} 6. exd4 {[%clk 0:03:00.5]} 6... Bf5 {[%clk
0:02:54.2]} 7. c3 {[%clk 0:03:00.1]} 7... e6 {[%clk 0:02:53.2]} 8. Qb3 {[%clk
0:02:55.9]} 8... Qc8 {[%clk 0:02:48.5]} 9. Bb5 {[%clk 0:02:48.5]} 9... Be7
{[%clk 0:02:36.2]} 10. O-O {[%clk 0:02:46.8]} 10... O-O {[%clk 0:02:35]} 11.
Rfe1 {[%clk 0:02:46.9]} 11... h6 {[%clk 0:02:34.3]} 12. Ne5 {[%clk 0:02:42.3]}
12... Nxe5 {[%clk 0:02:31.4]} 13. dxe5 {[%clk 0:02:37.6]} 13... Ne4 {[%clk
0:02:27.8]} 14. Nf3 {[%clk 0:02:36.1]} 14... a6 {[%clk 0:02:24.5]} 15. Bf1
{[%clk 0:02:35.5]} 15... Bh7 {[%clk 0:02:19.5]} 16. Nd4 {[%clk 0:02:34.7]} 16...
b5 {[%clk 0:02:06.8]} 17. a4 {[%clk 0:02:33.3]} 17... Nc5 {[%clk 0:02:05.9]} 18.
Qd1 {[%clk 0:02:28.1]} 18... Nxa4 {[%clk 0:02:01.5]} 19. Qd2 {[%clk 0:02:27.7]}
19... Kh8 {[%clk 0:01:37.8]} 20. Re3 {[%clk 0:02:23.2]} 20... Nc5 {[%clk
0:01:32.2]} 21. Rh3 {[%clk 0:02:21.7]} 21... Ne4 {[%clk 0:01:30.6]} 22. Qe3
{[%clk 0:02:18.4]} 22... Bg5 {[%clk 0:01:24.2]} 23. f3 {[%clk 0:01:56.2]} 23...
Bxf4 {[%clk 0:01:20.4]} 24. Qxf4 {[%clk 0:01:57.1]} 24... Ng5 {[%clk 0:01:21]}
25. Rg3 {[%clk 0:01:57]} 25... f5 {[%clk 0:00:52.4]} 26. Qh4 {[%clk 0:00:51.4]}
26... Qd8 {[%clk 0:00:48.2]} 27. f4 {[%clk 0:00:49.9]} 27... Ne4 {[%clk
0:00:43.9]} 28. Qxd8 {[%clk 0:00:49.6]} 28... Rfxd8 {[%clk 0:00:43.3]} 29. Nxe6
{[%clk 0:00:24.3]} 29... Nxg3 {[%clk 0:00:41.1]} 30. hxg3 {[%clk 0:00:25.2]}
30... Rdc8 {[%clk 0:00:38.3]} 31. Nd4 {[%clk 0:00:24.9]} 31... g6 {[%clk
0:00:35.7]} 32. Bd3 {[%clk 0:00:24.1]} 32... Bg8 {[%clk 0:00:35.8]} 33. g4
{[%clk 0:00:24.3]} 33... b4 {[%clk 0:00:23]} 34. cxb4 {[%clk 0:00:19.9]} 34...
Rab8 {[%clk 0:00:23.3]} 35. Bxa6 {[%clk 0:00:14.9]} 35... Rf8 {[%clk 0:00:20.9]}
36. gxf5 {[%clk 0:00:14.4]} 36... Rxb4 {[%clk 0:00:19.6]} 37. Nc6 {[%clk
0:00:13.2]} 37... Rxf4 {[%clk 0:00:17.1]} 38. fxg6 {[%clk 0:00:13.3]} 38... Kg7
{[%clk 0:00:16.7]} 39. Bd3 {[%clk 0:00:11.2]} 39... Be6 {[%clk 0:00:15.4]} 40.
Ra7+ {[%clk 0:00:11]} 40... Kg8 {[%clk 0:00:14.9]} 41. Ne7+ {[%clk 0:00:11.2]}
41... Kh8 {[%clk 0:00:15.6]} 42. g7+ {[%clk 0:00:11.7]} 42... Kxg7 {[%clk
0:00:15.8]} 43. Nxd5+ {[%clk 0:00:11.7]} 43... R4f7 {[%clk 0:00:16.1]} 44. Rxf7+
{[%clk 0:00:10.9]} 44... Rxf7 {[%clk 0:00:16]} 45. Nf6 {[%clk 0:00:11.5]} 45...
Rb7 {[%clk 0:00:14.2]} 46. Ne8+ {[%clk 0:00:11.8]} 46... Kf8 {[%clk 0:00:13.8]}
47. Nd6 {[%clk 0:00:12]} 47... Rxb2 {[%clk 0:00:13.9]} 48. Be4 {[%clk
0:00:12.6]} 48... Ke7 {[%clk 0:00:13.6]} 49. Kf1 {[%clk 0:00:12.3]} 49... Ra2
{[%clk 0:00:13.9]} 50. Nf5+ {[%clk 0:00:08.4]} 50... Bxf5 {[%clk 0:00:13.9]} 51.
Bxf5 {[%clk 0:00:09.3]} 51... Ra5 {[%clk 0:00:14.3]} 52. Kf2 {[%clk 0:00:09.8]}
52... Rxe5 {[%clk 0:00:14.9]} 53. Bg4 {[%clk 0:00:10.3]} 53... Kf6 {[%clk
0:00:15.7]} 54. Kg3 {[%clk 0:00:09.9]} 54... Kg5 {[%clk 0:00:16.3]} 55. Bf3
{[%clk 0:00:10.6]} 55... Ra5 {[%clk 0:00:16.9]} 56. Kh3 {[%clk 0:00:10.7]} 56...
Ra3 {[%clk 0:00:17.8]} 57. Kg3 {[%clk 0:00:11.2]} 57... h5 {[%clk 0:00:17.9]}
58. Kh2 {[%clk 0:00:11.1]} 58... h4 {[%clk 0:00:18]} 59. Kh3 {[%clk 0:00:11.7]}
59... Rc3 {[%clk 0:00:18.3]} 60. Kh2 {[%clk 0:00:12.1]} 60... Rc7 {[%clk
0:00:17.6]} 61. Kh3 {[%clk 0:00:12.5]} 61... Rg7 {[%clk 0:00:17.6]} 62. Kh2
{[%clk 0:00:12.8]} 62... Kf4 {[%clk 0:00:16.8]} 63. Kh3 {[%clk 0:00:13.3]} 63...
Rh7 {[%clk 0:00:15.4]} 64. Be2 {[%clk 0:00:12.6]} 64... Kg5 {[%clk 0:00:14.3]}
65. g3 {[%clk 0:00:12.5]} 65... hxg3+ {[%clk 0:00:13.6]} 66. Kxg3 {[%clk
0:00:13]} 66... Re7 {[%clk 0:00:14.5]} 67. Bf3 {[%clk 0:00:13.2]} 67... Re3
{[%clk 0:00:15.2]} 68. Kf2 {[%clk 0:00:13.6]} 68... Kf4 {[%clk 0:00:15.6]} 69.
Bg2 {[%clk 0:00:14.2]} 69... Ra3 {[%clk 0:00:15.6]} 70. Bd5 {[%clk 0:00:12.5]}
70... Rd3 {[%clk 0:00:16]} 71. Bc4 {[%clk 0:00:11.8]} 71... Rd2+ {[%clk
0:00:16.6]} 72. Ke1 {[%clk 0:00:11]} 72... Ke3 {[%clk 0:00:16.9]} 73. Kf1 {[%clk
0:00:11.5]} 73... Rc2 {[%clk 0:00:15.5]} 74. Bd5 {[%clk 0:00:11.5]} 74... Rd2
{[%clk 0:00:14.2]} 75. Bb7 {[%clk 0:00:11.4]} 75... Ra2 {[%clk 0:00:13.3]} 76.
Bc6 {[%clk 0:00:11.4]} 76... Rf2+ {[%clk 0:00:12.5]} 77. Kg1 {[%clk 0:00:10.8]}
77... Rc2 {[%clk 0:00:12.1]} 78. Bb7 {[%clk 0:00:10.6]} 78... Kf4 {[%clk
0:00:11.7]} 79. Kf1 {[%clk 0:00:10.9]} 79... Ke3 {[%clk 0:00:12]} 80. Kg1 {[%clk
0:00:10.5]} 80... Rd2 {[%clk 0:00:12.5]} 81. Kf1 {[%clk 0:00:10.6]} 81... Rf2+
{[%clk 0:00:12.1]} 82. Kg1 {[%clk 0:00:09.8]} 82... Ke2 {[%clk 0:00:12.7]} 83.
Ba6+ {[%clk 0:00:09]} 83... Kf3 {[%clk 0:00:13.1]} 84. Bb7+ {[%clk 0:00:08.4]}
84... Kg3 {[%clk 0:00:13.6]} 85. Ba6 {[%clk 0:00:05.3]} 85... Ra2 {[%clk
0:00:13.2]} 86. Bc4 {[%clk 0:00:04.5]} 86... Ra1+ {[%clk 0:00:13.5]} 87. Bf1
{[%clk 0:00:04.5]} 87... Rb1 {[%clk 0:00:14.1]} 88. Kh1 {[%clk 0:00:04.6]} 88...
Rxf1# {[%clk 0:00:15]} 0-1

[Event "Early-Titled-Tuesday-Blitz-June-18-2024"]
[Site "Chess.com"]
[Date "2024.06.18"]
[Round "3"]
[White "Kacparov"]
[Black "LeninGuerra"]
[Result "0-1"]
[WhiteElo "2865"]
[BlackElo "2547"]
[TimeControl "180+1"]
[EndTime "8:31:50 PDT"]
[Termination "LeninGuerra won by checkmate"]

1. e4 {[%clk 0:03:00.9]} 1... c5 {[%clk 0:02:59.9]} 2. Nf3 {[%clk 0:03:01.2]}
2... e6 {[%clk 0:02:59.7]} 3. d4 {[%clk 0:03:01.6]} 3... cxd4 {[%clk 0:03:00]}
4. Nxd4 {[%clk 0:03:02.5]} 4... Nc6 {[%clk 0:03:00.2]} 5. Nc3 {[%clk 0:03:02.8]}
5... a6 {[%clk 0:02:59.9]} 6. Nxc6 {[%clk 0:03:02.8]} 6... bxc6 {[%clk
0:02:59.8]} 7. Bd3 {[%clk 0:03:03.4]} 7... e5 {[%clk 0:03:00.1]} 8. O-O {[%clk
0:03:03]} 8... Nf6 {[%clk 0:03:00.4]} 9. f4 {[%clk 0:03:01]} 9... d6 {[%clk
0:03:00.6]} 10. Kh1 {[%clk 0:02:56.9]} 10... Be7 {[%clk 0:03:00.7]} 11. Qf3
{[%clk 0:02:48.7]} 11... Bg4 {[%clk 0:02:58.5]} 12. Qf2 {[%clk 0:02:45]} 12...
exf4 {[%clk 0:02:41.7]} 13. Bxf4 {[%clk 0:02:44.6]} 13... O-O {[%clk 0:02:41.6]}
14. Rae1 {[%clk 0:02:43.9]} 14... Be6 {[%clk 0:02:39.5]} 15. Qd2 {[%clk
0:01:35.1]} 15... Ng4 {[%clk 0:02:31.6]} 16. Ne2 {[%clk 0:01:34.9]} 16... Bf6
{[%clk 0:02:23.9]} 17. b3 {[%clk 0:01:29]} 17... Be5 {[%clk 0:02:08.9]} 18. Bxe5
{[%clk 0:01:25.3]} 18... Nxe5 {[%clk 0:01:59.4]} 19. Nd4 {[%clk 0:01:24.7]}
19... Qe7 {[%clk 0:01:55.6]} 20. Nf3 {[%clk 0:01:23.9]} 20... Bg4 {[%clk
0:01:50.4]} 21. Nxe5 {[%clk 0:01:22.8]} 21... Qxe5 {[%clk 0:01:50.3]} 22. h3
{[%clk 0:01:19.7]} 22... Be6 {[%clk 0:01:49.7]} 23. Qf4 {[%clk 0:01:10]} 23...
a5 {[%clk 0:01:47.2]} 24. a4 {[%clk 0:01:09.4]} 24... Rfd8 {[%clk 0:01:44.5]}
25. Kg1 {[%clk 0:01:04]} 25... Qxf4 {[%clk 0:01:44.4]} 26. Rxf4 {[%clk 0:01:04]}
26... f6 {[%clk 0:01:44.9]} 27. Kf2 {[%clk 0:01:03.2]} 27... Kf7 {[%clk
0:01:45.1]} 28. Ke3 {[%clk 0:01:03.2]} 28... Ke7 {[%clk 0:01:45.3]} 29. Kd4
{[%clk 0:01:02.4]} 29... Rab8 {[%clk 0:01:42.6]} 30. Kc3 {[%clk 0:01:01.4]}
30... Rb4 {[%clk 0:01:41.9]} 31. Rf2 {[%clk 0:00:58.6]} 31... Rdb8 {[%clk
0:01:40.1]} 32. h4 {[%clk 0:00:56.3]} 32... c5 {[%clk 0:01:40.3]} 33. Bb5 {[%clk
0:00:54.4]} 33... c4 {[%clk 0:01:35.3]} 34. bxc4 {[%clk 0:00:33.3]} 34... Bxc4
{[%clk 0:01:34.9]} 35. Bxc4 {[%clk 0:00:29.7]} 35... Rc8 {[%clk 0:01:34.8]} 36.
Kd3 {[%clk 0:00:29.2]} 36... Rbxc4 {[%clk 0:01:19.6]} 37. Rb1 {[%clk 0:00:27.5]}
37... Rc3+ {[%clk 0:01:18.8]} 38. Ke2 {[%clk 0:00:20.5]} 38... Rxc2+ {[%clk
0:01:18.1]} 39. Ke1 {[%clk 0:00:20.1]} 39... Rc1+ {[%clk 0:01:16.5]} 40. Rxc1
{[%clk 0:00:20.6]} 40... Rxc1+ {[%clk 0:01:16.8]} 41. Kd2 {[%clk 0:00:21.1]}
41... Rc4 {[%clk 0:01:17.1]} 42. Kd3 {[%clk 0:00:21]} 42... Rxa4 {[%clk
0:01:17.1]} 43. Rb2 {[%clk 0:00:21.7]} 43... Ra3+ {[%clk 0:01:10]} 44. Kd4
{[%clk 0:00:21.8]} 44... Ke6 {[%clk 0:01:09.2]} 45. Rb5 {[%clk 0:00:19.3]} 45...
Rg3 {[%clk 0:01:07.7]} 46. Rxa5 {[%clk 0:00:19.2]} 46... Rxg2 {[%clk 0:01:07.9]}
47. h5 {[%clk 0:00:19.5]} 47... Rg1 {[%clk 0:00:58.5]} 48. Ra7 {[%clk
0:00:18.3]} 48... h6 {[%clk 0:00:52.9]} 49. Ke3 {[%clk 0:00:17.1]} 49... g5
{[%clk 0:00:45.6]} 50. Rh7 {[%clk 0:00:12.8]} 50... Rg3+ {[%clk 0:00:41.8]} 51.
Kf2 {[%clk 0:00:13]} 51... Rg4 {[%clk 0:00:40.2]} 52. Kf3 {[%clk 0:00:12.8]}
52... Rh4 {[%clk 0:00:38.6]} 53. Rxh6 {[%clk 0:00:13]} 53... Ke5 {[%clk
0:00:39.2]} 54. Rh8 {[%clk 0:00:12.4]} 54... Rf4+ {[%clk 0:00:33.7]} 55. Kg3
{[%clk 0:00:12.7]} 55... Kxe4 {[%clk 0:00:33.8]} 56. Rf8 {[%clk 0:00:06.7]}
56... Kf5 {[%clk 0:00:31.1]} 57. Rd8 {[%clk 0:00:05.1]} 57... Rg4+ {[%clk
0:00:29.5]} 58. Kf3 {[%clk 0:00:05.3]} 58... Rh4 {[%clk 0:00:29.8]} 59. Rxd6
{[%clk 0:00:05.5]} 59... Rxh5 {[%clk 0:00:29.9]} 60. Rd5+ {[%clk 0:00:06.2]}
60... Kg6 {[%clk 0:00:30.1]} 61. Rd8 {[%clk 0:00:06.1]} 61... Rh3+ {[%clk
0:00:30.1]} 62. Kg2 {[%clk 0:00:06.1]} 62... Ra3 {[%clk 0:00:30]} 63. Rd4 {[%clk
0:00:06.8]} 63... Kh5 {[%clk 0:00:23.2]} 64. Rc4 {[%clk 0:00:06.6]} 64... f5
{[%clk 0:00:22.6]} 65. Kf2 {[%clk 0:00:07.1]} 65... f4 {[%clk 0:00:22.9]} 66.
Rc8 {[%clk 0:00:06.7]} 66... Kg4 {[%clk 0:00:23.3]} 67. Rc2 {[%clk 0:00:06.7]}
67... Rb3 {[%clk 0:00:23]} 68. Kg2 {[%clk 0:00:07.1]} 68... Rd3 {[%clk
0:00:21.8]} 69. Kf2 {[%clk 0:00:07.4]} 69... Kh3 {[%clk 0:00:21.5]} 70. Rc5
{[%clk 0:00:06.8]} 70... Kh4 {[%clk 0:00:18.3]} 71. Ke2 {[%clk 0:00:06.3]} 71...
Ra3 {[%clk 0:00:18.6]} 72. Kf2 {[%clk 0:00:06.3]} 72... g4 {[%clk 0:00:17.9]}
73. Rc2 {[%clk 0:00:06.1]} 73... g3+ {[%clk 0:00:17.7]} 74. Kg1 {[%clk
0:00:05.4]} 74... Kh3 {[%clk 0:00:17.3]} 75. Rc1 {[%clk 0:00:04.6]} 75... Ra2
{[%clk 0:00:17.6]} 76. Kf1 {[%clk 0:00:03.7]} 76... Rh2 {[%clk 0:00:16.2]} 77.
Rc8 {[%clk 0:00:02.5]} 77... Rh1+ {[%clk 0:00:15.7]} 78. Ke2 {[%clk 0:00:03]}
78... Kg2 {[%clk 0:00:16.2]} 79. Rf8 {[%clk 0:00:02.7]} 79... Rh4 {[%clk
0:00:14.2]} 80. Rf7 {[%clk 0:00:02.5]} 80... Kg1 {[%clk 0:00:14.3]} 81. Kf3
{[%clk 0:00:02.6]} 81... g2 {[%clk 0:00:13.8]} 82. Rg7 {[%clk 0:00:01.4]} 82...
Rh3+ {[%clk 0:00:14.2]} 83. Kxf4 {[%clk 0:00:02]} 83... Kf1 {[%clk 0:00:14.6]}
84. Ra7 {[%clk 0:00:02.1]} 84... g1=Q {[%clk 0:00:12]} 85. Ra1+ {[%clk
0:00:02.8]} 85... Kg2 {[%clk 0:00:12.5]} 86. Ra2+ {[%clk 0:00:03.4]} 86... Kh1
{[%clk 0:00:12.4]} 87. Ra8 {[%clk 0:00:02.7]} 87... Qg3+ {[%clk 0:00:12.4]} 88.
Kf5 {[%clk 0:00:02.6]} 88... Rh5+ {[%clk 0:00:12.8]} 89. Kf6 {[%clk 0:00:03]}
89... Qe5+ {[%clk 0:00:13]} 90. Kf7 {[%clk 0:00:03.5]} 90... Rh7+ {[%clk
0:00:13.1]} 91. Kg6 {[%clk 0:00:04.1]} 91... Rg7+ {[%clk 0:00:12]} 92. Kh6
{[%clk 0:00:05]} 92... Qg5# {[%clk 0:00:12.1]} 0-1